[Event "Asian Academies Hybrid Chess-ch 2021"]
[Site "Tornelo"]
[Date "2021.11.21"]
[Round "4.3"]
[White "Kazi Afsan Rawnak, Anan"]
[Black "Babaei, Amir Hossein"]
[Result "1-0"]
[ECO "B13"]
[WhiteElo "1410"]
[BlackElo "1286"]
[Annotator "NA RC"]
[PlyCount "81"]
[EventDate "2021.11.21"]
[EventCountry "NET"]
[SourceTitle "playchess.com"]
[Source "ChessBase"]
[SourceQuality "1"]
[TimeControl "3600+30"]

1. e4 {[%emt 0:00:36]} c6 {[%emt 0:08:01]} 2. d4 {[%emt 0:00:25]} d5 {[%emt 0:04:50]} 3. exd5 {[%emt 0:00:23]} cxd5 {[%emt 0:00:09]} 4. Bd3 {[%emt 0:00:29]} Nf6 {[%emt 0:00:15]} 5. Nf3 {[%emt 0:01:26]} Bg4 {[%emt 0:00:23]} 6. c3 {[%emt 0:02:04]} e6 {[%emt 0:00:11]} 7. h3 {[%emt 0:01:57]} Bh5 {[%emt 0:00:18]} 8. Bf4 {[%emt 0:00:48]} Bd6 {[%emt 0:00:12]} 9. Bxd6 {[%emt 0:00:33]} Qxd6 {[%emt 0:00:27]} 10. Nbd2 {[%emt 0:00:14]} Nc6 {[%emt 0:00:18]} 11. O-O {[%emt 0:02:53]} O-O {[%emt 0:03:43]} 12. Qc2 {[%emt 0:03:21]} Bg6 {[%emt 0:01:35]} 13. Rfe1 {[%emt 0:03:56]} Nd7 {[%emt 0:02:01]} 14. Bxg6 {[%emt 0:07:24]} fxg6 {[%emt 0:02:46]} 15. Re2 {[%emt 0:01:53]} Rf6 {[%emt 0:02:06]} 16. Rae1 {[%emt 0:01:17]} Rc8 {[%emt 0:02:23]} 17. Qb3 {[%emt 0:04:25]} Na5 {[%emt 0:11:55]} 18. Qb5 {[%emt 0:03:18]} Nc6 {[%emt 0:02:55]} 19. Ne5 {[%emt 0:03:07]} b6 {[%emt 0:04:57]} 20. Ng4 {[%emt 0:03:23]} Nf8 {[%emt 0:01:30]} 21. Nxf6+ {[%emt 0:00:29]} gxf6 {[%emt 0:00:07]} 22. Nf3 {[%emt 0:02:36]} Kf7 {[%emt 0:02:53]} 23. c4 {[%emt 0:01:27]} dxc4 {[%emt 0:01:29]} 24. Qxc4 {[%emt 0:01:53]} Ne7 {[%emt 0:00:34]} 25. Qb3 {[%emt 0:00:19]} Nd5 {[%emt 0:01:16]} 26. Rc2 {[%emt 0:01:56]} Rd8 {[%emt 0:02:10]} 27. Rec1 {[%emt 0:02:17]} Nf4 {[%emt 0:01:35]} 28. Rc6 {[%emt 0:01:31]} Ne2+ {[%emt 0:03:57]} 29. Kf1 {[%emt 0:01:00]} Nxd4 {[%emt 0:02:39]} 30. Rxd6 {[%emt 0:01:10]} Nxb3 {[%emt 0:00:22]} 31. Rc7+ {[%emt 0:00:21]} Ke8 {[%emt 0:00:29]} 32. Rxd8+ {[%emt 0:00:12]} Kxd8 {[%emt 0:00:07]} 33. Rxa7 {[%emt 0:00:40]} Nc5 {[%emt 0:01:39]} 34. b4 {[%emt 0:01:19]} Ncd7 {[%emt 0:01:16]} 35. a4 {[%emt 0:01:33]} Nb8 {[%emt 0:01:07]} 36. a5 {[%emt 0:00:56]} bxa5 {[%emt 0:00:25]} 37. bxa5 {[%emt 0:00:33]} e5 {[%emt 0:00:22]} 38. a6 {[%emt 0:00:21]} Nfd7 {[%emt 0:00:51]} 39. Ra8 {[%emt 0:00:29]} Kc7 {[%emt 0:00:20]} 40. a7 {[%emt 0:00:21]} Kb7 {[%emt 0:01:39]} 41. axb8=Q+ {[%emt 0:00:08]} 1-0

[Event "Asian Academies Hybrid Chess-ch 2021"]
[Site "Tornelo"]
[Date "2021.11.21"]
[Round "4.3"]
[White "Gholizadeh, Romina"]
[Black "Warsia, Khusbu"]
[Result "1-0"]
[ECO "D05"]
[WhiteElo "1254"]
[BlackElo "1505"]
[Annotator "NA RC"]
[PlyCount "63"]
[EventDate "2021.11.21"]
[EventCountry "NET"]
[SourceTitle "playchess.com"]
[Source "ChessBase"]
[SourceQuality "1"]
[TimeControl "3600+30"]

1. d4 {[%emt 0:00:35]} d5 {[%emt 0:06:00]} 2. Nf3 {[%emt 0:00:06]} Nf6 {[%emt 0:01:02]} 3. e3 {[%emt 0:00:10]} e6 {[%emt 0:00:04]} 4. Bd3 {[%emt 0:00:04]} c5 {[%emt 0:00:02]} 5. c3 {[%emt 0:00:08]} Nc6 {[%emt 0:00:02]} 6. Nbd2 {[%emt 0:00:29]} c4 {[%emt 0:00:04]} 7. Bc2 {[%emt 0:00:04]} Bd6 {[%emt 0:00:02]} 8. O-O {[%emt 0:00:37]} b5 {[%emt 0:00:04]} 9. e4 {[%emt 0:00:20]} Be7 {[%emt 0:00:55]} 10. exd5 {[%emt 0:01:14]} exd5 {[%emt 0:00:18]} 11. Re1 {[%emt 0:00:38]} O-O {[%emt 0:00:04]} 12. Ne5 {[%emt 0:00:17]} Nxe5 {[%emt 0:01:44]} 13. Rxe5 {[%emt 0:02:56]} Be6 {[%emt 0:00:29]} 14. Nf3 {[%emt 0:01:35]} Bd6 {[%emt 0:00:17]} 15. Re1 {[%emt 0:00:10]} h6 {[%emt 0:01:48]} 16. Ne5 {[%emt 0:00:18]} Nd7 {[%emt 0:01:12]} 17. Qh5 {[%emt 0:03:11]} Nf6 {[%emt 0:06:00]} 18. Qh4 {[%emt 0:02:06]} Ng4 {[%emt 0:04:21]} 19. Qxd8 {[%emt 0:04:10]} Raxd8 {[%emt 0:00:12]} 20. f4 {[%emt 0:04:38]} Nxe5 {[%emt 0:01:18]} 21. fxe5 {[%emt 0:00:09]} Be7 {[%emt 0:00:03]} 22. Bf4 {[%emt 0:02:11]} a5 {[%emt 0:02:53]} 23. a3 {[%emt 0:00:59]} b4 {[%emt 0:00:16]} 24. axb4 {[%emt 0:00:10]} axb4 {[%emt 0:00:03]} 25. Ra7 {[%emt 0:00:12]} Rd7 {[%emt 0:00:46]} 26. Rea1 {[%emt 0:02:36]} Rxa7 {[%emt 0:00:48]} 27. Rxa7 {[%emt 0:00:08]} Re8 {[%emt 0:01:18]} 28. Ba4 {[%emt 0:00:52]} Kf8 {[%emt 0:02:20]} 29. Bxe8 {[%emt 0:01:20]} Kxe8 {[%emt 0:00:04]} 30. cxb4 {[%emt 0:01:49]} Bxb4 {[%emt 0:00:03]} 31. Kf2 {[%emt 0:00:52]} c3 {[%emt 0:00:17]} 32. Ra4 {[%emt 0:01:31]} 1-0

[Event "Asian Academies Hybrid Chess-ch 2021"]
[Site "Tornelo"]
[Date "2021.11.21"]
[Round "4.3"]
[White "Ridwan, Rabbani"]
[Black "Dashtpeima, Helia"]
[Result "0-1"]
[ECO "D45"]
[WhiteElo "1170"]
[BlackElo "1278"]
[Annotator "NA RC"]
[PlyCount "36"]
[EventDate "2021.11.21"]
[EventCountry "NET"]
[SourceTitle "playchess.com"]
[Source "ChessBase"]
[SourceQuality "1"]
[TimeControl "3600+30"]

1. d4 {[%emt 0:00:30]} d5 {[%emt 0:00:38]} 2. c4 {[%emt 0:00:06]} e6 {[%emt 0:00:22]} 3. Nc3 {[%emt 0:00:12]} Nf6 {[%emt 0:00:10]} 4. e3 {[%emt 0:00:03]} c6 {[%emt 0:00:24]} 5. Nf3 {[%emt 0:00:06]} Nbd7 {[%emt 0:00:05]} 6. c5 {[%emt 0:00:07]} b6 {[%emt 0:00:37]} 7. b4 {[%emt 0:00:37]} a5 {[%emt 0:00:16]} 8. b5 {[%emt 0:00:05]} cxb5 {[%emt 0:01:59]} 9. cxb6 {[%emt 0:00:14]} Nxb6 {[%emt 0:00:22]} 10. Nxb5 {[%emt 0:00:05]} Ba6 {[%emt 0:01:04]} 11. Qc2 {[%emt 0:00:28]} Rc8 {[%emt 0:01:38]} 12. Qa4 {[%emt 0:01:12]} Nxa4 {[%emt 0:00:20]} 13. Nd6+ {[%emt 0:01:19]} Qxd6 {[%emt 0:00:17]} 14. Bxa6 {[%emt 0:00:05]} Qxa6 {[%emt 0:00:06]} 15. Bd2 {[%emt 0:00:28]} Bb4 {[%emt 0:00:08]} 16. Bxb4 {[%emt 0:00:05]} axb4 {[%emt 0:00:02]} 17. Rb1 {[%emt 0:02:21]} Nc3 {[%emt 0:00:07]} 18. Rxb4 {[%emt 0:00:24]} Qe2# {[%emt 0:00:04]} 0-1

[Event "Asian Academies Hybrid Chess-ch 2021"]
[Site "Tornelo"]
[Date "2021.11.21"]
[Round "4.4"]
[White "Naimanov, Galymzhan"]
[Black "Amarathunga, Kosala Sandeepa Cham"]
[Result "1/2-1/2"]
[ECO "A08"]
[WhiteElo "1256"]
[BlackElo "1353"]
[Annotator "NA RC"]
[PlyCount "91"]
[EventDate "2021.11.21"]
[EventCountry "NET"]
[SourceTitle "playchess.com"]
[Source "ChessBase"]
[SourceQuality "1"]
[TimeControl "3600+30"]

1. e4 {[%emt 0:00:30]} e6 {[%emt 0:03:12]} 2. d3 {[%emt 0:03:21]} d5 {[%emt 0:02:31]} 3. Nd2 {[%emt 0:00:04]} c5 {[%emt 0:01:28]} 4. Ngf3 {[%emt 0:00:13]} Nc6 {[%emt 0:00:47]} 5. g3 {[%emt 0:00:07]} Bd6 {[%emt 0:00:47]} 6. Bg2 {[%emt 0:00:30]} Nge7 {[%emt 0:00:18]} 7. O-O {[%emt 0:00:57]} O-O {[%emt 0:02:52]} 8. Re1 {[%emt 0:00:23]} Ng6 {[%emt 0:04:18]} 9. h4 {[%emt 0:01:04]} f5 {[%emt 0:09:04]} 10. Nf1 {[%emt 0:37:33]} f4 {[%emt 0:10:59]} 11. h5 {[%emt 0:05:37]} Nge5 {[%emt 0:00:50]} 12. gxf4 {[%emt 0:02:04]} Nxf3+ {[%emt 0:01:15]} 13. Bxf3 {[%emt 0:00:42]} Bxf4 {[%emt 0:01:38]} 14. Bxf4 {[%emt 0:01:21]} Rxf4 {[%emt 0:00:48]} 15. Ng3 {[%emt 0:01:21]} Ne5 {[%emt 0:03:06]} 16. Be2 {[%emt 0:06:58]} d4 {[%emt 0:01:20]} 17. Kg2 {[%emt 0:02:12]} Qf6 {[%emt 0:02:08]} 18. Rf1 {[%emt 0:00:59]} Bd7 {[%emt 0:00:23]} 19. f3 {[%emt 0:01:20]} Rf8 {[%emt 0:01:10]} 20. Rf2 {[%emt 0:00:20]} Ng4 {[%emt 0:00:15]} 21. fxg4 {[%emt 0:00:35]} Rxf2+ {[%emt 0:00:04]} 22. Kg1 {[%emt 0:00:02]} Qh4 {[%emt 0:00:19]} 23. Nf1 {[%emt 0:00:02]} Rh2 {[%emt 0:01:40]} 24. Nxh2 {[%emt 0:01:10]} Qg3+ {[%emt 0:00:25]} 25. Kh1 {[%emt 0:00:08]} Rf2 {[%emt 0:00:04]} 26. Qg1 {[%emt 0:00:04]} Qxg1+ {[%emt 0:00:05]} 27. Kxg1 {[%emt 0:01:54]} Rxe2 {[%emt 0:00:09]} 28. Rc1 {[%emt 0:00:10]} e5 {[%emt 0:00:17]} 29. Nf3 {[%emt 0:01:27]} Bxg4 {[%emt 0:00:12]} 30. Nxe5 {[%emt 0:00:07]} Bxh5 {[%emt 0:00:23]} 31. c3 {[%emt 0:00:18]} dxc3 {[%emt 0:02:04]} 32. Rxc3 {[%emt 0:00:17]} b6 {[%emt 0:00:28]} 33. b4 {[%emt 0:00:58]} Rxa2 {[%emt 0:02:51]} 34. bxc5 {[%emt 0:00:05]} bxc5 {[%emt 0:00:24]} 35. Rxc5 {[%emt 0:00:04]} g5 {[%emt 0:01:13]} 36. Nd7 {[%emt 0:00:50]} Be2 {[%emt 0:00:54]} 37. Rxg5+ {[%emt 0:00:16]} Kf7 {[%emt 0:00:04]} 38. Rg2 {[%emt 0:01:25]} a5 {[%emt 0:07:45]} 39. Kh2 {[%emt 0:01:44]} Rc2 {[%emt 0:01:07]} 40. Nc5 {[%emt 0:00:39]} Rxc5 {[%emt 0:00:06]} 41. Rxe2 {[%emt 0:00:02]} a4 {[%emt 0:00:02]} 42. Ra2 {[%emt 0:00:02]} Ra5 {[%emt 0:00:02]} 43. Ra3 {[%emt 0:00:02]} Ke6 {[%emt 0:00:03]} 44. Kg3 {[%emt 0:00:02]} Ke5 {[%emt 0:00:02]} 45. Kf3 {[%emt 0:00:05]} h5 {[%emt 0:00:10]} 46. Ke3 {[%emt 0:00:04]} 1/2-1/2

[Event "Asian Academies Hybrid Chess-ch 2021"]
[Site "Tornelo"]
[Date "2021.11.21"]
[Round "6.2"]
[White "Ajami, Kiyana"]
[Black "Kazi Afsan Rawnak, Anan"]
[Result "1/2-1/2"]
[ECO "D05"]
[WhiteElo "1170"]
[BlackElo "1410"]
[Annotator "NA RC"]
[PlyCount "71"]
[EventDate "2021.11.21"]
[EventCountry "NET"]
[SourceTitle "playchess.com"]
[Source "ChessBase"]
[SourceQuality "1"]
[TimeControl "3600+30"]

1. d4 {[%emt 0:01:29]} d5 {[%emt 0:00:42]} 2. Nf3 {[%emt 0:00:09]} Nf6 {[%emt 0:00:03]} 3. e3 {[%emt 0:00:07]} e6 {[%emt 0:01:29]} 4. Bd3 {[%emt 0:00:05]} c5 {[%emt 0:00:35]} 5. c3 {[%emt 0:00:32]} Bd6 {[%emt 0:02:22]} 6. Ne5 {[%emt 0:01:29]} Bxe5 {[%emt 0:02:32]} 7. dxe5 {[%emt 0:00:04]} Nfd7 {[%emt 0:00:32]} 8. f4 {[%emt 0:02:54]} c4 {[%emt 0:01:45]} 9. Bc2 {[%emt 0:00:30]} Qh4+ {[%emt 0:00:41]} 10. g3 {[%emt 0:00:20]} Qh3 {[%emt 0:00:16]} 11. Qe2 {[%emt 0:00:22]} b5 {[%emt 0:05:45]} 12. Nd2 {[%emt 0:02:06]} Bb7 {[%emt 0:01:07]} 13. e4 {[%emt 0:01:21]} Nc5 {[%emt 0:02:34]} 14. b4 {[%emt 0:05:22]} Ncd7 {[%emt 0:03:14]} 15. Bb2 {[%emt 0:03:36]} O-O {[%emt 0:04:18]} 16. O-O-O {[%emt 0:01:26]} a5 {[%emt 0:02:15]} 17. Kb1 {[%emt 0:03:19]} Rc8 {[%emt 0:02:30]} 18. Qe3 {[%emt 0:02:02]} f6 {[%emt 0:03:10]} 19. Nf3 {[%emt 0:02:36]} fxe5 {[%emt 0:01:50]} 20. fxe5 {[%emt 0:01:03]} a4 {[%emt 0:03:13]} 21. exd5 {[%emt 0:02:25]} Bxd5 {[%emt 0:00:35]} 22. Ng5 {[%emt 0:03:37]} Qh6 {[%emt 0:03:05]} 23. Bxh7+ {[%emt 0:02:07]} Kf8 {[%emt 0:01:16]} 24. Rhf1+ {[%emt 0:02:03]} Ke8 {[%emt 0:00:28]} 25. Qf4 {[%emt 0:01:25]} Nc6 {[%emt 0:03:44]} 26. Be4 {[%emt 0:03:44]} Bxe4+ {[%emt 0:02:57]} 27. Nxe4 {[%emt 0:00:57]} Qg6 {[%emt 0:01:07]} 28. Ka1 {[%emt 0:01:02]} Rcb8 {[%emt 0:03:22]} 29. Nc5 {[%emt 0:01:10]} Ncxe5 {[%emt 0:01:28]} 30. Nxd7 {[%emt 0:01:03]} Nxd7 {[%emt 0:00:30]} 31. Qd6 {[%emt 0:00:37]} Ra7 {[%emt 0:00:34]} 32. g4 {[%emt 0:01:57]} Rb6 {[%emt 0:03:59]} 33. Qd4 {[%emt 0:00:29]} e5 {[%emt 0:00:48]} 34. Qf2 {[%emt 0:01:07]} Rc7 {[%emt 0:01:18]} 35. h4 {[%emt 0:01:11]} Rf6 {[%emt 0:00:26]} 36. Qg2 {[%emt 0:01:31]} 1/2-1/2

[Event "Asian Academies Hybrid Chess-ch 2021"]
[Site "Tornelo"]
[Date "2021.11.21"]
[Round "6.3"]
[White "Alizadeh, Amirmohammad"]
[Black "Galiakbarov, Aldiyar"]
[Result "1/2-1/2"]
[ECO "B45"]
[WhiteElo "1792"]
[BlackElo "1141"]
[Annotator "NA RC"]
[PlyCount "116"]
[EventDate "2021.11.21"]
[EventCountry "NET"]
[SourceTitle "playchess.com"]
[Source "ChessBase"]
[SourceQuality "1"]
[TimeControl "3600+30"]

1. e4 {[%emt 0:00:30]} c5 {[%emt 0:00:34]} 2. Nf3 {[%emt 0:00:21]} e6 {[%emt 0:00:03]} 3. d4 {[%emt 0:00:04]} cxd4 {[%emt 0:00:01]} 4. Nxd4 {[%emt 0:00:03]} Nf6 {[%emt 0:00:03]} 5. Nc3 {[%emt 0:00:03]} Nc6 {[%emt 0:00:02]} 6. Ndb5 {[%emt 0:00:03]} Bb4 {[%emt 0:00:05]} 7. a3 {[%emt 0:00:03]} Bxc3+ {[%emt 0:00:02]} 8. Nxc3 {[%emt 0:00:03]} d5 {[%emt 0:00:02]} 9. exd5 {[%emt 0:00:02]} exd5 {[%emt 0:00:02]} 10. Bd3 {[%emt 0:00:02]} d4 {[%emt 0:00:01]} 11. Ne2 {[%emt 0:00:11]} O-O {[%emt 0:00:03]} 12. O-O {[%emt 0:00:04]} h6 {[%emt 0:00:01]} 13. Bf4 {[%emt 0:00:23]} Bg4 {[%emt 0:01:19]} 14. Qd2 {[%emt 0:01:06]} Re8 {[%emt 0:01:49]} 15. Rad1 {[%emt 0:02:11]} Qb6 {[%emt 0:03:25]} 16. b3 {[%emt 0:05:39]} Bxe2 {[%emt 0:10:27]} 17. Bxe2 {[%emt 0:00:11]} Ne4 {[%emt 0:00:28]} 18. Qd3 {[%emt 0:00:22]} Nc5 {[%emt 0:00:34]} 19. Qb5 {[%emt 0:05:33]} Ne4 {[%emt 0:01:46]} 20. Rde1 {[%emt 0:05:59]} Nc3 {[%emt 0:14:57]} 21. Qxb6 {[%emt 0:00:39]} Nxe2+ {[%emt 0:00:14]} 22. Rxe2 {[%emt 0:00:28]} axb6 {[%emt 0:00:02]} 23. Rxe8+ {[%emt 0:00:34]} Rxe8 {[%emt 0:00:05]} 24. Rd1 {[%emt 0:01:08]} b5 {[%emt 0:01:51]} 25. Kf1 {[%emt 0:00:21]} f5 {[%emt 0:03:02]} 26. Re1 {[%emt 0:01:45]} Rxe1+ {[%emt 0:03:34]} 27. Kxe1 {[%emt 0:00:06]} Kf7 {[%emt 0:00:07]} 28. Kd2 {[%emt 0:00:14]} Ke6 {[%emt 0:00:10]} 29. Kd3 {[%emt 0:10:27]} Kd5 {[%emt 0:01:09]} 30. h4 {[%emt 0:01:02]} h5 {[%emt 0:00:30]} 31. f3 {[%emt 0:03:43]} Nd8 {[%emt 0:02:01]} 32. g3 {[%emt 0:00:55]} Ne6 {[%emt 0:00:09]} 33. Bc1 {[%emt 0:16:58]} Nc5+ {[%emt 0:00:23]} 34. Kd2 {[%emt 0:00:08]} g6 {[%emt 0:02:25]} 35. Ke2 {[%emt 0:03:09]} d3+ {[%emt 0:11:52]} 36. cxd3 {[%emt 0:00:05]} Nxb3 {[%emt 0:00:02]} 37. Bb2 {[%emt 0:00:02]} Nc5 {[%emt 0:00:16]} 38. Ke3 {[%emt 0:01:10]} Ne6 {[%emt 0:00:22]} 39. Bc3 {[%emt 0:00:54]} Nc5 {[%emt 0:00:36]} 40. Bb4 {[%emt 0:02:11]} Ne6 {[%emt 0:00:10]} 41. Bc3 {[%emt 0:01:08]} Nc5 {[%emt 0:00:07]} 42. Bb2 {[%emt 0:00:11]} Ne6 {[%emt 0:00:20]} 43. Bf6 {[%emt 0:02:17]} Nf8 {[%emt 0:00:27]} 44. g4 {[%emt 0:03:20]} Ne6 {[%emt 0:04:43]} 45. gxh5 {[%emt 0:00:15]} gxh5 {[%emt 0:00:03]} 46. Kd2 {[%emt 0:03:02]} Nd4 {[%emt 0:04:08]} 47. Ke3 {[%emt 0:02:34]} Ne6 {[%emt 0:00:04]} 48. Be7 {[%emt 0:00:17]} f4+ {[%emt 0:02:25]} 49. Ke2 {[%emt 0:00:57]} Nd4+ {[%emt 0:00:09]} 50. Kf2 {[%emt 0:00:18]} Ne6 {[%emt 0:00:50]} 51. Ke2 {[%emt 0:01:13]} Nd4+ {[%emt 0:00:11]} 52. Kf2 {[%emt 0:00:04]} Ke5 {[%emt 0:00:32]} 53. Bd8 {[%emt 0:01:04]} Ne6 {[%emt 0:00:59]} 54. Bb6 {[%emt 0:00:21]} Nd4 {[%emt 0:00:29]} 55. Bc7+ {[%emt 0:00:22]} Kf5 {[%emt 0:00:05]} 56. Bb6 {[%emt 0:00:37]} Ke5 {[%emt 0:00:59]} 57. Bc7+ {[%emt 0:00:06]} Kf5 {[%emt 0:00:04]} 58. Bb6 {[%emt 0:00:03]} Ke5 {[%emt 0:02:53]} 1/2-1/2

[Event "Asian Academies Hybrid Chess-ch 2021"]
[Site "Tornelo"]
[Date "2021.11.21"]
[Round "6.3"]
[White "Gholizadeh, Parya"]
[Black "Omarova, Aisha"]
[Result "1-0"]
[ECO "A47"]
[WhiteElo "1256"]
[BlackElo "1012"]
[Annotator "NA RC"]
[PlyCount "77"]
[EventDate "2021.11.21"]
[EventCountry "NET"]
[SourceTitle "playchess.com"]
[Source "ChessBase"]
[SourceQuality "1"]
[TimeControl "3600+30"]

1. d4 {[%emt 0:00:30]} e6 {[%emt 0:00:36]} 2. Nf3 {[%emt 0:00:13]} c5 {[%emt 0:00:05]} 3. e3 {[%emt 0:00:25]} Nc6 {[%emt 0:00:12]} 4. c3 {[%emt 0:00:39]} Nf6 {[%emt 0:00:24]} 5. Bd3 {[%emt 0:00:33]} b6 {[%emt 0:00:25]} 6. Nbd2 {[%emt 0:00:29]} Bb7 {[%emt 0:00:33]} 7. Nf1 {[%emt 0:01:37]} d6 {[%emt 0:00:50]} 8. Ng3 {[%emt 0:00:14]} e5 {[%emt 0:00:32]} 9. Qa4 {[%emt 0:04:31]} Qc7 {[%emt 0:04:02]} 10. O-O {[%emt 0:01:46]} O-O-O {[%emt 0:01:21]} 11. Ba6 {[%emt 0:01:27]} Na5 {[%emt 0:03:09]} 12. Bxb7+ {[%emt 0:00:10]} Qxb7 {[%emt 0:00:23]} 13. dxe5 {[%emt 0:00:15]} dxe5 {[%emt 0:02:01]} 14. Nxe5 {[%emt 0:00:06]} Bd6 {[%emt 0:00:20]} 15. Nc4 {[%emt 0:01:09]} Bxg3 {[%emt 0:01:30]} 16. hxg3 {[%emt 0:00:13]} Nc6 {[%emt 0:00:18]} 17. Na3 {[%emt 0:01:43]} h5 {[%emt 0:01:09]} 18. b4 {[%emt 0:02:14]} h4 {[%emt 0:02:06]} 19. bxc5 {[%emt 0:02:53]} h3 {[%emt 0:01:27]} 20. cxb6 {[%emt 0:00:59]} axb6 {[%emt 0:00:28]} 21. e4 {[%emt 0:08:06]} h2+ {[%emt 0:08:35]} 22. Kh1 {[%emt 0:00:31]} Ne5 {[%emt 0:00:22]} 23. Bf4 {[%emt 0:00:39]} Nd3 {[%emt 0:04:09]} 24. Qc4+ {[%emt 0:00:33]} Nc5 {[%emt 0:00:20]} 25. e5 {[%emt 0:00:54]} Nfe4 {[%emt 0:03:33]} 26. f3 {[%emt 0:01:12]} Nd2 {[%emt 0:00:48]} 27. Bxd2 {[%emt 0:00:34]} Rxd2 {[%emt 0:00:06]} 28. Nb5 {[%emt 0:02:24]} Kb8 {[%emt 0:02:07]} 29. Qf4 {[%emt 0:00:43]} Rb2 {[%emt 0:03:11]} 30. e6+ {[%emt 0:01:18]} Ka8 {[%emt 0:00:15]} 31. Nc7+ {[%emt 0:00:48]} Ka7 {[%emt 0:00:30]} 32. exf7 {[%emt 0:00:39]} Nd7 {[%emt 0:06:47]} 33. Qa4+ {[%emt 0:00:56]} Kb8 {[%emt 0:01:27]} 34. Qxd7 {[%emt 0:00:16]} Qxc7 {[%emt 0:00:35]} 35. Qe8+ {[%emt 0:00:09]} Rxe8 {[%emt 0:00:14]} 36. fxe8=Q+ {[%emt 0:00:10]} Ka7 {[%emt 0:00:09]} 37. Rfe1 {[%emt 0:00:36]} Qxg3 {[%emt 0:00:21]} 38. Re7+ {[%emt 0:00:29]} Ka6 {[%emt 0:00:03]} 39. Qa4# {[%emt 0:00:09]} 1-0

[Event "Asian Academies Hybrid Chess-ch 2021"]
[Site "Tornelo"]
[Date "2021.11.21"]
[Round "6.3"]
[White "Naimanov, Galymzhan"]
[Black "Mohammadi, Mohamad Amin"]
[Result "0-1"]
[ECO "D35"]
[WhiteElo "1256"]
[BlackElo "1855"]
[Annotator "NA RC"]
[PlyCount "130"]
[EventDate "2021.11.21"]
[EventCountry "NET"]
[SourceTitle "playchess.com"]
[Source "ChessBase"]
[SourceQuality "1"]
[TimeControl "3600+30"]

{[%evp 8,124,19,6,25,10,20,23,23,12,25,11,39,33,106,91,101,95,99,83,88,83,100,106,107,104,104,117,119,124,117,115,118,119,125,110,113,41,27,24,20,-5,-4,-6,-20,-45,-39,-31,-19,-38,-15,-65,-63,-79,-96,-92,-88,-144,-99,-100,-25,-25,0,-31,-49,-56,-62,-113,-117,-152,-171,-231,-231,32767,32767,32767,32767,32767,32767,32767,32767,32767,32767,32767,32767,32767,32767,32767,32767,32767,32767,32767,0,-465,-567,-616,-687,-691,-608,-576,32767,32767,32767,32767,32767,32767,32767,32767,32767,32767,32767,32767,32767,32767,32767,32767,-29974,-29989,-29989]} 1. d4 {[%emt 0:00:30]} Nf6 {[%emt 0:01:18]} 2. c4 {[%emt 0:00:06]} e6 {[%emt 0:00:53]} 3. Nc3 {[%emt 0:00:39]} d5 {[%emt 0:00:06]} 4. Bg5 {[%emt 0:00:46]} Be7 {[%emt 0:00:14]} 5. cxd5 {[%emt 0:01:39]} exd5 {[%emt 0:00:35]} 6. e3 {[%emt 0:00:30]} c6 {[%emt 0:00:53]} 7. Bd3 {[%emt 0:00:08]} Nbd7 {[%emt 0:00:15]} 8. Nge2 {[%emt 0:10:06]} h6 {[%emt 0:06:26] 8...Nf8 is the modern continuation.} 9. Bh4 {[%emt 0:00:56]} Ne4 {[%emt 0:02:15]} 10. Bxe7 {[%emt 0:02:43]} Qxe7 {[%emt 0:00:25]} 11. Bxe4 {[%emt 0:03:00]} dxe4 {[%emt 0:00:04] [#]} 12. Ng3 $1 {[%emt 0:00:47]} Nf6 {[%emt 0:00:09]} 13. Qc2 {[%emt 0:00:24]} O-O {[%emt 0:00:04]} 14. Ngxe4 {[%emt 0:02:40]} ({But not} 14. Ncxe4 $6 Nxe4 15. Nxe4 Bf5 $15) 14... Bf5 {[%emt 0:06:04]} 15. Nxf6+ {[%emt 0:00:38]} Qxf6 {[%emt 0:00:04]} 16. Qd2 {[%emt 0:09:16]} Qg6 {[%emt 0:01:40]} 17. O-O {[%emt 0:00:48]} Bh3 {[%emt 0:01:11]} 18. f3 {[%emt 0:01:46]} Rfe8 {[%emt 0:01:02] [#]} 19. Rfe1 $146 {[%emt 0:02:59]} ({Predecessor:} 19. Kh1 Be6 20. e4 Bc4 21. Rfd1 Rad8 22. Qf2 Qg5 23. Rac1 Qa5 24. h3 Re7 25. Rd2 Red7 26. Rcd1 b5 {½-½ (26) Borodkin,Y-Piven,V (1851) Krasnodar 2010}) 19... Rad8 {[%emt 0:00:29]} 20. Qf2 {[%emt 0:03:02]} Be6 {[%emt 0:03:25]} 21. Rad1 {[%emt 0:02:29]} f5 {[%emt 0:08:09]} 22. Ne2 {[%emt 0:02:43]} ({White should play} 22. h3 $16) 22... Bxa2 {[%emt 0:04:13]} 23. Ra1 {[%emt 0:01:09]} Qf7 {[%emt 0:00:59]} 24. Nc3 {[%emt 0:01:06]} Bc4 {[%emt 0:00:16]} 25. Ra3 {[%emt 0:11:59]} b6 {[%emt 0:09:33]} 26. f4 {[%emt 0:04:29]} Rd7 {[%emt 0:15:06]} 27. Nb1 {[%emt 0:00:54]} Qe7 {[%emt 0:00:48]} 28. Nd2 {[%emt 0:00:08]} Bd5 {[%emt 0:00:39]} 29. Rea1 {[%emt 0:00:23]} a5 {[%emt 0:04:35]} 30. Nf3 {[%emt 0:00:20]} Bxf3 {[%emt 0:00:49]} 31. Qxf3 {[%emt 0:00:08] [#]} c5 $1 {[%emt 0:00:11]} 32. d5 {[%emt 0:03:01] [#]} (32. Ra4 $142) 32... Qe4 {[%emt 0:00:42]} ({Black should play} 32... c4 $1 $19 33. Qe2 Qe4) 33. Qxe4 {[%emt 0:01:33]} fxe4 {[%emt 0:01:12]} (33... Rxe4 $17 34. Rd1 Kf7) 34. Rb3 {[%emt 0:00:20]} Rd6 {[%emt 0:00:45]} 35. Kf2 {[%emt 0:00:41]} Kf7 {[%emt 0:00:42]} 36. g4 {[%emt 0:00:28]} Ke7 {[%emt 0:01:06]} 37. Ra4 {[%emt 0:01:10]} (37. Kg3 $11 {keeps the balance.}) 37... Kd7 {[%emt 0:00:27]} 38. Kg3 {[%emt 0:02:30]} Kc7 {[%emt 0:00:23]} 39. f5 {[%emt 0:00:11]} (39. Rc3 $142) 39... Rxd5 {[%emt 0:00:09]} 40. Kf4 {[%emt 0:00:02]} Rd3 {[%emt 0:01:23]} 41. Rc3 {[%emt 0:00:45]} Rd2 {[%emt 0:00:11]} 42. Rxe4 {[%emt 0:00:22]} Rf2+ {[%emt 0:00:25]} 43. Kg3 {[%emt 0:00:08]} Rxe4 {[%emt 0:00:08]} 44. Kxf2 {[%emt 0:00:04]} Rxg4 {[%emt 0:00:02]} 45. Kf3 {[%emt 0:00:12]} Rb4 {[%emt 0:00:04]} 46. Rc2 {[%emt 0:00:05]} Kd6 {[%emt 0:01:13]} 47. e4 {[%emt 0:01:41]} Ke5 {[%emt 0:00:06]} 48. Re2 {[%emt 0:00:16]} Rb3+ {[%emt 0:00:29]} 49. Kg4 {[%emt 0:00:58]} Rb4 $2 {[%emt 0:01:15]} (49... a4 $19 50. Kh5 Rb4) 50. Kf3 {[%emt 0:00:57]} a4 {[%emt 0:00:15]} 51. h4 {[%emt 0:00:03]} b5 {[%emt 0:00:48]} 52. Rc2 {[%emt 0:00:26]} Rc4 {[%emt 0:00:15]} 53. Re2 {[%emt 0:00:40]} Rd4 {[%emt 0:00:09]} 54. Rc2 {[%emt 0:00:19]} c4 {[%emt 0:00:02]} 55. Rg2 {[%emt 0:00:23]} Rd3+ {[%emt 0:01:03]} 56. Ke2 {[%emt 0:00:14]} Kxe4 {[%emt 0:00:17]} 57. Rxg7 {[%emt 0:00:19]} Kxf5 {[%emt 0:00:04]} 58. Rg2 {[%emt 0:00:32]} Rh3 {[%emt 0:00:19]} 59. Rg8 {[%emt 0:01:01]} Rh2+ {[%emt 0:00:07]} 60. Kd1 {[%emt 0:00:02]} Rxb2 {[%emt 0:00:04]} 61. Kc1 {[%emt 0:00:01]} c3 {[%emt 0:00:10]} 62. Rb8 {[%emt 0:00:06]} b4 {[%emt 0:00:04]} 63. Ra8 {[%emt 0:00:04]} a3 {[%emt 0:00:15]} 64. h5 {[%emt 0:00:02]} a2 {[%emt 0:00:07]} 65. Ra5+ {[%emt 0:00:10]} Kg4 {[%emt 0:00:19]} 0-1